[Event "*** Titled Tuesday Blitz"]
[Site "Chess.com"]
[Date "2021.02.16"]
[Round "6"]
[White "Julianos82"]
[Black "Lion-Al-Messi"]
[Result "0-1"]
[WhiteElo "2351"]
[BlackElo "2510"]
[TimeControl "180+1"]
[EndTime "11:05:55 PST"]
[Termination "Lion-Al-Messi won by resignation"]

1. d4 {[%clk 0:03:00.9]} 1... d5 {[%clk 0:02:59.5]} 2. Bf4 {[%clk 0:02:59.8]}
2... Nf6 {[%clk 0:02:59.1]} 3. e3 {[%clk 0:02:59.6]} 3... c5 {[%clk 0:02:59.4]}
4. c3 {[%clk 0:02:59.1]} 4... Qb6 {[%clk 0:02:59.7]} 5. Nd2 {[%clk 0:02:58.6]}
5... Qxb2 {[%clk 0:02:59.3]} 6. Ngf3 {[%clk 0:02:53.8]} 6... Nc6 {[%clk
0:02:55.9]} 7. Ne5 {[%clk 0:02:49.8]} 7... e6 {[%clk 0:02:42.7]} 8. Bd3 {[%clk
0:02:39.2]} 8... Qxc3 {[%clk 0:02:38.2]} 9. Rc1 {[%clk 0:02:33.5]} 9... Qa3
{[%clk 0:02:36.8]} 10. Bb5 {[%clk 0:02:15.4]} 10... Bd7 {[%clk 0:02:36.8]} 11.
Nxd7 {[%clk 0:02:14]} 11... Nxd7 {[%clk 0:02:37.7]} 12. O-O {[%clk 0:02:09.5]}
12... c4 {[%clk 0:02:37.4]} 13. e4 {[%clk 0:02:05.5]} 13... a6 {[%clk
0:02:36.4]} 14. exd5 {[%clk 0:01:57.5]} 14... axb5 {[%clk 0:02:36.1]} 15. dxc6
{[%clk 0:01:50]} 15... bxc6 {[%clk 0:02:37]} 16. Ne4 {[%clk 0:01:45.1]} 16...
Be7 {[%clk 0:02:34.2]} 17. Re1 {[%clk 0:01:33]} 17... O-O {[%clk 0:02:33.7]} 18.
Be5 {[%clk 0:01:25]} 18... Qxa2 {[%clk 0:02:26.1]} 19. Bxg7 {[%clk 0:01:11.9]}
19... Kxg7 {[%clk 0:02:25.9]} 20. Rc3 {[%clk 0:01:07.6]} 20... Ra3 {[%clk
0:02:24.5]} 21. Rxa3 {[%clk 0:00:59.9]} 21... Qxa3 {[%clk 0:02:23.4]} 22. Re3
{[%clk 0:00:59.7]} 22... Qa2 {[%clk 0:02:21.8]} 23. h4 {[%clk 0:00:44.5]} 23...
f5 {[%clk 0:02:18.2]} 24. Nc3 {[%clk 0:00:36.2]} 24... Qa5 {[%clk 0:02:09.9]}
25. Rg3+ {[%clk 0:00:30.3]} 25... Kh8 {[%clk 0:02:09.1]} 26. Qh5 {[%clk
0:00:29.4]} 26... Qa1+ {[%clk 0:02:08.9]} 27. Kh2 {[%clk 0:00:28.6]} 27... Bd6
{[%clk 0:02:09.2]} 28. Ne2 {[%clk 0:00:24]} 28... Bxg3+ {[%clk 0:02:09]} 29.
fxg3 {[%clk 0:00:23.8]} 29... Nf6 {[%clk 0:02:07.2]} 30. Qh6 {[%clk 0:00:18.6]}
30... Ng4+ {[%clk 0:02:07.4]} 0-1

[Event "*** Titled Tuesday Blitz"]
[Site "Chess.com"]
[Date "2021.02.16"]
[Round "6"]
[White "Vugar_Manafov"]
[Black "GLeruste"]
[Result "1-0"]
[WhiteElo "2655"]
[BlackElo "2453"]
[TimeControl "180+1"]
[EndTime "11:06:12 PST"]
[Termination "Vugar_Manafov won by resignation"]

1. Nf3 {[%clk 0:02:59.3]} 1... g6 {[%clk 0:03:00]} 2. g3 {[%clk 0:02:59.6]} 2...
Bg7 {[%clk 0:03:00.5]} 3. Bg2 {[%clk 0:03:00.5]} 3... e5 {[%clk 0:03:01]} 4. O-O
{[%clk 0:03:01.2]} 4... Ne7 {[%clk 0:03:00.4]} 5. e4 {[%clk 0:03:01.5]} 5... O-O
{[%clk 0:03:00.1]} 6. Nc3 {[%clk 0:03:01.5]} 6... d6 {[%clk 0:03:00.3]} 7. d3
{[%clk 0:03:01.3]} 7... Nbc6 {[%clk 0:02:59.2]} 8. Nd2 {[%clk 0:03:01.6]} 8...
f5 {[%clk 0:02:58.4]} 9. f4 {[%clk 0:03:01]} 9... Nd4 {[%clk 0:02:55.1]} 10. Nc4
{[%clk 0:03:01]} 10... Be6 {[%clk 0:02:46.6]} 11. Ne3 {[%clk 0:02:57.4]} 11...
c6 {[%clk 0:02:44.2]} 12. exf5 {[%clk 0:02:49.3]} 12... Nexf5 {[%clk 0:02:40.1]}
13. fxe5 {[%clk 0:02:47.7]} 13... Bxe5 {[%clk 0:02:31.1]} 14. Ne4 {[%clk
0:02:42.6]} 14... Kh8 {[%clk 0:02:18]} 15. c3 {[%clk 0:02:37]} 15... Nxe3 {[%clk
0:02:17.3]} 16. Rxf8+ {[%clk 0:02:36.9]} 16... Qxf8 {[%clk 0:02:14.9]} 17. Bxe3
{[%clk 0:02:37.8]} 17... Nf5 {[%clk 0:02:11.2]} 18. Bd2 {[%clk 0:02:37.1]} 18...
Bg7 {[%clk 0:02:07.5]} 19. Qc2 {[%clk 0:02:30.3]} 19... Re8 {[%clk 0:02:05.6]}
20. Rf1 {[%clk 0:02:29.6]} 20... Qe7 {[%clk 0:02:05]} 21. Bg5 {[%clk 0:02:29]}
21... Qd7 {[%clk 0:02:05]} 22. Nf6 {[%clk 0:02:27.6]} 22... Bxf6 {[%clk
0:02:03]} 23. Bxf6+ {[%clk 0:02:28.5]} 23... Kg8 {[%clk 0:02:03.3]} 24. Qd2
{[%clk 0:02:27.3]} 24... Rf8 {[%clk 0:02:02.2]} 25. Bg5 {[%clk 0:02:25]} 25...
Ng7 {[%clk 0:02:01]} 26. Rxf8+ {[%clk 0:02:23.8]} 26... Kxf8 {[%clk 0:02:00.7]}
27. Qf2+ {[%clk 0:02:15.6]} 27... Qf7 {[%clk 0:01:47.8]} 28. Qxa7 {[%clk
0:02:15.7]} 28... Qf5 {[%clk 0:01:35.7]} 29. Qb8+ {[%clk 0:01:44.3]} 29... Ne8
{[%clk 0:01:32.4]} 30. Bh6+ {[%clk 0:01:42.6]} 30... Ke7 {[%clk 0:01:23]} 31.
Qxb7+ {[%clk 0:01:41.1]} 31... Bd7 {[%clk 0:01:23.5]} 32. h4 {[%clk 0:01:26.4]}
32... Qxd3 {[%clk 0:01:11.4]} 33. Bg5+ {[%clk 0:01:21.9]} 1-0

[Event "*** Titled Tuesday Blitz"]
[Site "Chess.com"]
[Date "2021.02.16"]
[Round "6"]
[White "DJojua"]
[Black "Skatchkov_V"]
[Result "0-1"]
[WhiteElo "2731"]
[BlackElo "2532"]
[TimeControl "180+1"]
[EndTime "11:06:14 PST"]
[Termination "Skatchkov_V won by resignation"]

1. d4 {[%clk 0:03:00.9]} 1... Nf6 {[%clk 0:02:57]} 2. Nf3 {[%clk 0:03:00.4]}
2... e6 {[%clk 0:02:57.5]} 3. Bf4 {[%clk 0:03:00.1]} 3... d5 {[%clk 0:02:52]} 4.
e3 {[%clk 0:02:56.2]} 4... c5 {[%clk 0:02:52.2]} 5. c3 {[%clk 0:02:53.3]} 5...
Nc6 {[%clk 0:02:52.2]} 6. Bd3 {[%clk 0:02:52.4]} 6... Nh5 {[%clk 0:02:52.6]} 7.
Bg5 {[%clk 0:02:45.1]} 7... f6 {[%clk 0:02:52.7]} 8. Bh4 {[%clk 0:02:35.2]} 8...
g6 {[%clk 0:02:51.9]} 9. Nbd2 {[%clk 0:02:20]} 9... cxd4 {[%clk 0:02:46.4]} 10.
Nxd4 {[%clk 0:02:07.8]} 10... e5 {[%clk 0:02:34.5]} 11. N4b3 {[%clk 0:01:49.2]}
11... Be6 {[%clk 0:02:30.4]} 12. O-O {[%clk 0:01:48.5]} 12... Be7 {[%clk
0:02:25]} 13. Be2 {[%clk 0:01:29]} 13... Ng7 {[%clk 0:02:23.9]} 14. e4 {[%clk
0:01:29.4]} 14... O-O {[%clk 0:02:08.2]} 15. Bf3 {[%clk 0:01:27.5]} 15... d4
{[%clk 0:02:03.5]} 16. cxd4 {[%clk 0:01:24.8]} 16... Nxd4 {[%clk 0:02:04.3]} 17.
Nxd4 {[%clk 0:01:23.8]} 17... Qxd4 {[%clk 0:02:05.2]} 18. Nb3 {[%clk 0:01:07]}
18... Qxb2 {[%clk 0:02:03.5]} 19. Bg4 {[%clk 0:01:02.6]} 19... Rfd8 {[%clk
0:01:50.4]} 20. Qf3 {[%clk 0:00:54.9]} 20... Bxb3 {[%clk 0:01:32.6]} 21. Qxb3+
{[%clk 0:00:39.1]} 21... Qxb3 {[%clk 0:01:32.4]} 22. axb3 {[%clk 0:00:39.2]}
22... h5 {[%clk 0:01:30.9]} 23. Be2 {[%clk 0:00:36.8]} 23... g5 {[%clk
0:01:30.7]} 24. Bg3 {[%clk 0:00:34.4]} 24... h4 {[%clk 0:01:30.9]} 0-1

[Event "*** Titled Tuesday Blitz"]
[Site "Chess.com"]
[Date "2021.02.16"]
[Round "6"]
[White "Make_it_shine060"]
[Black "SHIVACalypso"]
[Result "1-0"]
[WhiteElo "2195"]
[BlackElo "2330"]
[TimeControl "180+1"]
[EndTime "11:06:15 PST"]
[Termination "Make_it_shine060 won by resignation"]

1. d4 {[%clk 0:03:00.9]} 1... e6 {[%clk 0:03:00.9]} 2. c4 {[%clk 0:03:01.5]}
2... Nf6 {[%clk 0:02:59.4]} 3. Nf3 {[%clk 0:02:59]} 3... d5 {[%clk 0:02:58.4]}
4. Nc3 {[%clk 0:02:57.7]} 4... Bb4 {[%clk 0:02:56.2]} 5. cxd5 {[%clk 0:02:56.7]}
5... exd5 {[%clk 0:02:57.1]} 6. Bg5 {[%clk 0:02:56.3]} 6... h6 {[%clk
0:02:55.9]} 7. Bh4 {[%clk 0:02:54.7]} 7... O-O {[%clk 0:02:53.6]} 8. e3 {[%clk
0:02:54]} 8... Nc6 {[%clk 0:02:51.9]} 9. Bd3 {[%clk 0:02:53.1]} 9... Bg4 {[%clk
0:02:50.7]} 10. O-O {[%clk 0:02:52]} 10... Re8 {[%clk 0:02:49.2]} 11. Bxf6
{[%clk 0:02:48.4]} 11... Qxf6 {[%clk 0:02:48.5]} 12. Nxd5 {[%clk 0:02:48]} 12...
Qd6 {[%clk 0:02:42.1]} 13. Nxb4 {[%clk 0:02:46.1]} 13... Nxb4 {[%clk 0:02:43]}
14. Be2 {[%clk 0:02:43.9]} 14... Nd5 {[%clk 0:02:34.5]} 15. h3 {[%clk
0:02:42.8]} 15... Bh5 {[%clk 0:02:32.7]} 16. Rc1 {[%clk 0:02:41.8]} 16... Rad8
{[%clk 0:02:24.4]} 17. Qc2 {[%clk 0:02:34.3]} 17... c6 {[%clk 0:02:21.4]} 18. a3
{[%clk 0:02:33.3]} 18... Bg6 {[%clk 0:02:18.3]} 19. Qb3 {[%clk 0:02:30.9]} 19...
Re7 {[%clk 0:01:50.7]} 20. Ne5 {[%clk 0:02:28.5]} 20... Rde8 {[%clk 0:01:48.8]}
21. Bf3 {[%clk 0:02:25.3]} 21... Bf5 {[%clk 0:01:38.7]} 22. e4 {[%clk
0:02:19.5]} 22... c5 {[%clk 0:01:14]} 23. exf5 {[%clk 0:02:16.4]} 23... cxd4
{[%clk 0:01:14.3]} 24. Bxd5 {[%clk 0:02:14.8]} 24... Qxe5 {[%clk 0:01:11.3]} 25.
Bf3 {[%clk 0:02:03.2]} 25... Qxf5 {[%clk 0:01:08.6]} 26. Rcd1 {[%clk 0:02:00.8]}
26... Rd8 {[%clk 0:01:05.2]} 27. Qc4 {[%clk 0:01:51.7]} 27... d3 {[%clk
0:00:54.8]} 28. Rd2 {[%clk 0:01:51.3]} 28... Qg5 {[%clk 0:00:48.7]} 29. Rfd1
{[%clk 0:01:48.3]} 29... Re1+ {[%clk 0:00:48.1]} 30. Rxe1 {[%clk 0:01:40.3]}
30... Qxd2 {[%clk 0:00:47.4]} 31. Re7 {[%clk 0:01:38.5]} 31... Qf4 {[%clk
0:00:42.7]} 32. Qxf4 {[%clk 0:01:36.2]} 1-0

[Event "*** Titled Tuesday Blitz"]
[Site "Chess.com"]
[Date "2021.02.16"]
[Round "6"]
[White "SergeyShtyka"]
[Black "Ginger_GM"]
[Result "0-1"]
[WhiteElo "2472"]
[BlackElo "2639"]
[TimeControl "180+1"]
[EndTime "11:06:19 PST"]
[Termination "Ginger_GM won by resignation"]

1. e4 {[%clk 0:02:57.5]} 1... c5 {[%clk 0:02:59.4]} 2. Nf3 {[%clk 0:02:56.3]}
2... d6 {[%clk 0:02:59.5]} 3. d4 {[%clk 0:02:56.7]} 3... cxd4 {[%clk 0:02:59.7]}
4. Nxd4 {[%clk 0:02:57.6]} 4... Nf6 {[%clk 0:03:00]} 5. Nc3 {[%clk 0:02:58]}
5... g6 {[%clk 0:03:00.2]} 6. f4 {[%clk 0:02:57.6]} 6... Nbd7 {[%clk 0:02:59.5]}
7. Nf3 {[%clk 0:02:53.2]} 7... Qc7 {[%clk 0:02:57.4]} 8. Bd3 {[%clk 0:02:51.2]}
8... Bg7 {[%clk 0:02:56.9]} 9. O-O {[%clk 0:02:51.3]} 9... O-O {[%clk
0:02:56.7]} 10. Kh1 {[%clk 0:02:51.6]} 10... a6 {[%clk 0:02:52.2]} 11. f5 {[%clk
0:02:50.5]} 11... b5 {[%clk 0:02:49.9]} 12. a3 {[%clk 0:02:48]} 12... Bb7 {[%clk
0:02:49.9]} 13. Qe1 {[%clk 0:02:48]} 13... e6 {[%clk 0:02:17.7]} 14. fxe6 {[%clk
0:02:42.3]} 14... fxe6 {[%clk 0:02:17.4]} 15. Qh4 {[%clk 0:02:35.1]} 15... Nc5
{[%clk 0:02:08.4]} 16. Bg5 {[%clk 0:02:20.1]} 16... Rf7 {[%clk 0:02:00]} 17.
Rfe1 {[%clk 0:01:44.5]} 17... Raf8 {[%clk 0:01:52.8]} 18. Qh3 {[%clk 0:01:36.2]}
18... Nh5 {[%clk 0:01:44.1]} 19. Nd1 {[%clk 0:01:03]} 19... d5 {[%clk
0:01:35.2]} 20. e5 {[%clk 0:00:54.6]} 20... d4 {[%clk 0:01:29.8]} 21. Be2 {[%clk
0:00:48.9]} 21... Ne4 {[%clk 0:01:24.1]} 22. Bh4 {[%clk 0:00:44.2]} 22... Nf4
{[%clk 0:01:21.8]} 23. Qg4 {[%clk 0:00:42.1]} 23... h5 {[%clk 0:01:11.1]} 0-1

[Event "*** Titled Tuesday Blitz"]
[Site "Chess.com"]
[Date "2021.02.16"]
[Round "6"]
[White "louis198"]
[Black "MergenKakabaev"]
[Result "0-1"]
[WhiteElo "2526"]
[BlackElo "2382"]
[TimeControl "180+1"]
[EndTime "11:06:19 PST"]
[Termination "MergenKakabaev won by resignation"]

1. d4 {[%clk 0:03:00.9]} 1... d5 {[%clk 0:02:59.3]} 2. c4 {[%clk 0:03:01.1]}
2... c6 {[%clk 0:02:58.9]} 3. Nc3 {[%clk 0:03:01.2]} 3... Nf6 {[%clk 0:02:58.5]}
4. Nf3 {[%clk 0:02:54.2]} 4... e6 {[%clk 0:02:58.3]} 5. Bg5 {[%clk 0:02:53]}
5... dxc4 {[%clk 0:02:57.9]} 6. e4 {[%clk 0:02:52.1]} 6... b5 {[%clk 0:02:57.3]}
7. e5 {[%clk 0:02:51.8]} 7... h6 {[%clk 0:02:57.6]} 8. Bh4 {[%clk 0:02:52.2]}
8... g5 {[%clk 0:02:57.5]} 9. Nxg5 {[%clk 0:02:52.7]} 9... hxg5 {[%clk
0:02:58.4]} 10. Bxg5 {[%clk 0:02:53.3]} 10... Be7 {[%clk 0:02:58.7]} 11. exf6
{[%clk 0:02:53.3]} 11... Bxf6 {[%clk 0:02:59.6]} 12. Bxf6 {[%clk 0:02:53.7]}
12... Qxf6 {[%clk 0:03:00.5]} 13. Be2 {[%clk 0:02:54.3]} 13... Na6 {[%clk
0:02:50.5]} 14. a3 {[%clk 0:02:46.2]} 14... Bb7 {[%clk 0:02:49.4]} 15. Bf3
{[%clk 0:02:45.4]} 15... O-O-O {[%clk 0:02:49.1]} 16. Ne2 {[%clk 0:02:36.3]}
16... e5 {[%clk 0:02:46.3]} 17. a4 {[%clk 0:02:26.8]} 17... exd4 {[%clk
0:02:37.4]} 18. axb5 {[%clk 0:02:25.4]} 18... cxb5 {[%clk 0:02:37.5]} 19. Bxb7+
{[%clk 0:02:24.5]} 19... Kxb7 {[%clk 0:02:38.4]} 20. O-O {[%clk 0:02:09.8]}
20... Nc5 {[%clk 0:02:19.3]} 21. Ng3 {[%clk 0:01:54.9]} 21... d3 {[%clk
0:02:06.7]} 22. Re1 {[%clk 0:01:47.4]} 22... Rhe8 {[%clk 0:02:01.5]} 23. Qh5
{[%clk 0:01:45]} 23... Kb6 {[%clk 0:01:46.2]} 24. h4 {[%clk 0:01:19.1]} 24...
Rxe1+ {[%clk 0:01:42.1]} 25. Rxe1 {[%clk 0:01:18.6]} 25... d2 {[%clk 0:01:42.4]}
26. Rd1 {[%clk 0:01:18.7]} 26... Qxb2 {[%clk 0:01:32.1]} 27. Qh6+ {[%clk
0:01:16.1]} 27... f6 {[%clk 0:01:30.4]} 28. Qe3 {[%clk 0:01:06.2]} 28... Qd4
{[%clk 0:01:27.6]} 29. Qa3 {[%clk 0:00:59.8]} 29... c3 {[%clk 0:01:24.9]} 30.
Ne2 {[%clk 0:00:59.3]} 30... c2 {[%clk 0:01:17.5]} 0-1

[Event "*** Titled Tuesday Blitz"]
[Site "Chess.com"]
[Date "2021.02.16"]
[Round "6"]
[White "GM_LOADING"]
[Black "mishanick"]
[Result "0-1"]
[WhiteElo "2495"]
[BlackElo "2993"]
[TimeControl "180+1"]
[EndTime "11:06:20 PST"]
[Termination "mishanick won by resignation"]

1. d4 {[%clk 0:03:00.9]} 1... Nf6 {[%clk 0:02:54.9]} 2. Nf3 {[%clk 0:03:01.1]}
2... b6 {[%clk 0:02:50.3]} 3. Bg5 {[%clk 0:03:00.6]} 3... Bb7 {[%clk 0:02:50.1]}
4. Nbd2 {[%clk 0:03:00.9]} 4... d6 {[%clk 0:02:49.8]} 5. e3 {[%clk 0:03:00.7]}
5... Nbd7 {[%clk 0:02:50.3]} 6. Bd3 {[%clk 0:02:59.6]} 6... c5 {[%clk
0:02:50.9]} 7. c3 {[%clk 0:02:59.3]} 7... e6 {[%clk 0:02:51.5]} 8. O-O {[%clk
0:02:58.6]} 8... Be7 {[%clk 0:02:52]} 9. e4 {[%clk 0:02:54.5]} 9... h6 {[%clk
0:02:49.3]} 10. Bh4 {[%clk 0:02:48.8]} 10... g5 {[%clk 0:02:49.6]} 11. Bg3
{[%clk 0:02:48.1]} 11... Nh5 {[%clk 0:02:50.2]} 12. Nc4 {[%clk 0:02:40.4]} 12...
Nxg3 {[%clk 0:02:46.5]} 13. fxg3 {[%clk 0:02:41.3]} 13... O-O {[%clk 0:02:43.1]}
14. Ne3 {[%clk 0:02:36.3]} 14... cxd4 {[%clk 0:02:40.8]} 15. cxd4 {[%clk
0:02:34.9]} 15... Bf6 {[%clk 0:02:38.8]} 16. Qe2 {[%clk 0:02:29.9]} 16... Bg7
{[%clk 0:02:38.7]} 17. Rad1 {[%clk 0:02:23.2]} 17... Rc8 {[%clk 0:02:37.5]} 18.
Bb1 {[%clk 0:02:11.9]} 18... Qe7 {[%clk 0:02:30.1]} 19. Ng4 {[%clk 0:01:49.3]}
19... Rfd8 {[%clk 0:02:26.4]} 20. Qd3 {[%clk 0:01:37.6]} 20... h5 {[%clk
0:02:22.1]} 21. Ne3 {[%clk 0:01:36.3]} 21... g4 {[%clk 0:02:18.7]} 22. Nh4
{[%clk 0:01:36.2]} 22... Qg5 {[%clk 0:02:18.6]} 23. Rde1 {[%clk 0:00:56.6]}
23... Rc7 {[%clk 0:02:12.7]} 24. e5 {[%clk 0:00:55]} 24... Nf8 {[%clk
0:02:12.7]} 25. Nc4 {[%clk 0:00:25.7]} 25... Ba6 {[%clk 0:01:54.4]} 26. exd6
{[%clk 0:00:21.1]} 26... Bxc4 {[%clk 0:01:47.7]} 27. Qc2 {[%clk 0:00:17.2]}
27... Rc6 {[%clk 0:01:43.7]} 0-1

[Event "*** Titled Tuesday Blitz"]
[Site "Chess.com"]
[Date "2021.02.16"]
[Round "6"]
[White "GregShahade"]
[Black "beautroll"]
[Result "1-0"]
[WhiteElo "2659"]
[BlackElo "2475"]
[TimeControl "180+1"]
[EndTime "11:06:20 PST"]
[Termination "GregShahade won by resignation"]

1. e4 {[%clk 0:03:00.9]} 1... c5 {[%clk 0:03:00]} 2. Nf3 {[%clk 0:03:00.3]} 2...
d6 {[%clk 0:03:00]} 3. d4 {[%clk 0:03:00.4]} 3... cxd4 {[%clk 0:03:00.8]} 4.
Nxd4 {[%clk 0:02:59.9]} 4... Nf6 {[%clk 0:03:00.8]} 5. Nc3 {[%clk 0:03:00.5]}
5... a6 {[%clk 0:03:01.2]} 6. Be3 {[%clk 0:03:00.8]} 6... e6 {[%clk 0:02:58.4]}
7. f3 {[%clk 0:03:00.1]} 7... b5 {[%clk 0:02:57.8]} 8. Qd2 {[%clk 0:03:00.5]}
8... Nbd7 {[%clk 0:02:52.5]} 9. g4 {[%clk 0:03:00.4]} 9... h6 {[%clk 0:02:51.8]}
10. O-O-O {[%clk 0:02:58.4]} 10... Bb7 {[%clk 0:02:50.7]} 11. h4 {[%clk
0:02:55.9]} 11... b4 {[%clk 0:02:49.2]} 12. Na4 {[%clk 0:02:56.2]} 12... Qa5
{[%clk 0:02:48]} 13. b3 {[%clk 0:02:56.7]} 13... Nc5 {[%clk 0:02:48]} 14. a3
{[%clk 0:02:51.8]} 14... Rc8 {[%clk 0:02:46.4]} 15. axb4 {[%clk 0:02:44.8]}
15... Nxb3+ {[%clk 0:02:44.8]} 16. Nxb3 {[%clk 0:02:45.7]} 16... Qxa4 {[%clk
0:02:44.9]} 17. Kb2 {[%clk 0:02:42.9]} 17... Be7 {[%clk 0:02:30.1]} 18. Ra1
{[%clk 0:02:36]} 18... Qd7 {[%clk 0:02:27.2]} 19. Bxa6 {[%clk 0:02:30.3]} 19...
Bxe4 {[%clk 0:01:48.9]} 20. Bxc8 {[%clk 0:02:25.8]} 20... Qxc8 {[%clk 0:01:43]}
21. fxe4 {[%clk 0:02:18]} 21... Nxe4 {[%clk 0:01:43.9]} 22. Qd3 {[%clk
0:02:11.3]} 22... Bf6+ {[%clk 0:01:41.4]} 23. Bd4 {[%clk 0:02:11.5]} 23... Nf2
{[%clk 0:01:39]} 24. Qb5+ {[%clk 0:02:11.2]} 24... Kf8 {[%clk 0:01:36]} 25. Bxf6
{[%clk 0:02:10.6]} 25... Nxh1 {[%clk 0:01:33.9]} 26. Qc4 {[%clk 0:01:37.2]}
26... Qe8 {[%clk 0:01:17.2]} 27. Bc3 {[%clk 0:01:30.5]} 27... Ng3 {[%clk
0:01:12.4]} 28. Qd3 {[%clk 0:01:28.1]} 28... h5 {[%clk 0:00:39.5]} 29. Qxd6+
{[%clk 0:01:19.6]} 1-0

[Event "*** Titled Tuesday Blitz"]
[Site "Chess.com"]
[Date "2021.02.16"]
[Round "6"]
[White "Skat2704"]
[Black "fabianvivasz"]
[Result "1-0"]
[WhiteElo "2536"]
[BlackElo "2359"]
[TimeControl "180+1"]
[EndTime "11:06:21 PST"]
[Termination "Skat2704 won by resignation"]

1. d4 {[%clk 0:03:00.7]} 1... Nf6 {[%clk 0:02:58.9]} 2. c4 {[%clk 0:02:58.6]}
2... g6 {[%clk 0:02:57.7]} 3. Nf3 {[%clk 0:02:57.2]} 3... Bg7 {[%clk 0:02:57.1]}
4. Nc3 {[%clk 0:02:56.9]} 4... d5 {[%clk 0:02:57.5]} 5. e3 {[%clk 0:02:55.7]}
5... O-O {[%clk 0:02:56.8]} 6. cxd5 {[%clk 0:02:55.3]} 6... Nxd5 {[%clk
0:02:57.7]} 7. Bc4 {[%clk 0:02:54.1]} 7... Qd7 {[%clk 0:02:58.6]} 8. Bxd5 {[%clk
0:02:51.2]} 8... c6 {[%clk 0:02:33.7]} 9. Bc4 {[%clk 0:02:48.9]} 9... b5 {[%clk
0:02:31.7]} 10. Be2 {[%clk 0:02:46.8]} 10... a6 {[%clk 0:02:31.6]} 11. O-O
{[%clk 0:02:45.1]} 11... Bb7 {[%clk 0:02:23.2]} 12. Ne4 {[%clk 0:02:41.8]} 12...
Qc7 {[%clk 0:02:12.4]} 13. Nc5 {[%clk 0:02:38.5]} 13... Nd7 {[%clk 0:02:10.9]}
14. b4 {[%clk 0:02:34.5]} 14... a5 {[%clk 0:02:08.8]} 15. Bd2 {[%clk 0:02:28.8]}
15... Nxc5 {[%clk 0:02:03.4]} 16. bxc5 {[%clk 0:02:27.1]} 16... Rfd8 {[%clk
0:02:01.5]} 17. Qc2 {[%clk 0:02:24.3]} 17... Bc8 {[%clk 0:01:54.4]} 18. a4
{[%clk 0:02:19.5]} 18... b4 {[%clk 0:01:52.5]} 19. Bc4 {[%clk 0:02:17.8]} 19...
Bf5 {[%clk 0:01:45.5]} 20. e4 {[%clk 0:02:15.6]} 20... Bg4 {[%clk 0:01:44.9]}
21. Ng5 {[%clk 0:02:13.3]} 21... e6 {[%clk 0:01:39.7]} 22. h3 {[%clk 0:02:10.9]}
22... Bxd4 {[%clk 0:01:22.3]} 23. hxg4 {[%clk 0:02:07]} 23... Bxa1 {[%clk
0:01:02.3]} 24. Rxa1 {[%clk 0:02:04.3]} 24... Qe5 {[%clk 0:01:02.8]} 25. Rc1
{[%clk 0:01:58.9]} 25... Rab8 {[%clk 0:00:40.1]} 26. Bb3 {[%clk 0:01:52.2]}
26... Rd7 {[%clk 0:00:36.4]} 27. Nf3 {[%clk 0:01:49.6]} 27... Qf6 {[%clk
0:00:33.6]} 28. g5 {[%clk 0:01:47.3]} 28... Qe7 {[%clk 0:00:32.8]} 29. Bf4
{[%clk 0:01:43.5]} 29... Rbd8 {[%clk 0:00:31.9]} 30. Bd6 {[%clk 0:01:34.8]} 1-0

[Event "*** Titled Tuesday Blitz"]
[Site "Chess.com"]
[Date "2021.02.16"]
[Round "6"]
[White "Vanina1989"]
[Black "ViditYT"]
[Result "1-0"]
[WhiteElo "2747"]
[BlackElo "2997"]
[TimeControl "180+1"]
[EndTime "11:06:23 PST"]
[Termination "Vanina1989 won by resignation"]

1. d4 {[%clk 0:03:00.9]} 1... Nf6 {[%clk 0:02:59.9]} 2. c4 {[%clk 0:03:01.1]}
2... e6 {[%clk 0:03:00.3]} 3. Nf3 {[%clk 0:03:00.9]} 3... d5 {[%clk 0:03:01]} 4.
Nc3 {[%clk 0:03:00.5]} 4... Nbd7 {[%clk 0:03:01.1]} 5. Bg5 {[%clk 0:02:59.6]}
5... c6 {[%clk 0:02:58.5]} 6. e3 {[%clk 0:02:59.8]} 6... h6 {[%clk 0:02:58.8]}
7. Bh4 {[%clk 0:02:58.4]} 7... g5 {[%clk 0:02:59.5]} 8. Bg3 {[%clk 0:02:58.4]}
8... Nh5 {[%clk 0:03:00.2]} 9. Nd2 {[%clk 0:02:56]} 9... Nxg3 {[%clk 0:02:59.7]}
10. hxg3 {[%clk 0:02:56.1]} 10... Bg7 {[%clk 0:02:59.8]} 11. Bd3 {[%clk
0:02:53.8]} 11... Qe7 {[%clk 0:02:57.8]} 12. Qe2 {[%clk 0:02:40.4]} 12... a6
{[%clk 0:02:55.2]} 13. f4 {[%clk 0:02:28.4]} 13... dxc4 {[%clk 0:02:35.9]} 14.
Nxc4 {[%clk 0:02:26.7]} 14... c5 {[%clk 0:02:35.5]} 15. Ne4 {[%clk 0:02:19]}
15... cxd4 {[%clk 0:02:27.9]} 16. Ncd6+ {[%clk 0:02:18.4]} 16... Kf8 {[%clk
0:02:22.3]} 17. Rc1 {[%clk 0:02:17.6]} 17... Nb6 {[%clk 0:02:21.6]} 18. fxg5
{[%clk 0:02:14.1]} 18... Bd7 {[%clk 0:01:55.7]} 19. O-O {[%clk 0:02:11.2]} 19...
Be8 {[%clk 0:01:46.2]} 20. g6 {[%clk 0:01:42.4]} 20... f6 {[%clk 0:01:27.9]} 21.
Nxf6 {[%clk 0:01:36.4]} 21... Bxf6 {[%clk 0:01:16.1]} 22. Rxf6+ {[%clk
0:01:35.5]} 22... Qxf6 {[%clk 0:01:11.3]} 23. Rf1 {[%clk 0:01:35.4]} 23... Nd5
{[%clk 0:01:00.8]} 24. Rxf6+ {[%clk 0:01:22.9]} 24... Nxf6 {[%clk 0:01:00.8]}
25. exd4 {[%clk 0:01:23.2]} 25... Bd7 {[%clk 0:00:53.8]} 26. Qe5 {[%clk
0:01:21.6]} 26... Kg7 {[%clk 0:00:53.9]} 27. Ne4 {[%clk 0:01:16.2]} 27... Rhf8
{[%clk 0:00:47.6]} 28. Nxf6 {[%clk 0:01:15.4]} 28... Rxf6 {[%clk 0:00:48.5]} 29.
Qc7 {[%clk 0:01:15.6]} 1-0